bitfinex/quotes_BTCUSD_20220226
["timestamp","ask_amount","ask_price","bid_price","bid_amount"]
[1645906043057,0.293085,39295.0,39294.0,0.18912313]
[1645906043255,0.0519,39295.0,39294.0,0.18912313]
[1645906044301,0.0509,39295.0,39294.0,0.18912313]
[1645906044500,0.292085,39295.0,39294.0,0.18912313]
[1645906045104,0.293085,39295.0,39294.0,0.18912313]
[1645906046305,0.292085,39295.0,39294.0,0.18912313]
[1645906046504,0.0509,39295.0,39294.0,0.18912313]
[1645906047105,0.313561,39297.0,39294.0,0.18912313]
[1645906047956,0.063661,39297.0,39294.0,0.18912313]
[1645906048355,0.241185,39296.0,39294.0,0.18912313]
[1645906048557,0.063661,39297.0,39294.0,0.18912313]
[1645906048757,0.241185,39296.0,39294.0,0.18912313]
[1645906050364,0.063661,39297.0,39294.0,0.18912313]
[1645906050559,0.241185,39296.0,39294.0,0.18912313]
[1645906051704,0.063661,39297.0,39294.0,0.18912313]
[1645906052107,0.063661,39297.0,39294.0,0.18903045]
[1645906052303,0.241185,39296.0,39294.0,0.18903045]
[1645906053403,0.241185,39296.0,39294.0,0.17903045]
[1645906059714,0.24036459,39296.0,39294.0,0.17903045]
[1645906062519,0.0509,39295.0,39294.0,0.17903045]
[1645906062719,0.291222,39295.0,39294.0,0.17903045]
[1645906063761,0.06368556,39293.0,39289.0,0.0003967]
[1645906063962,0.58234718,39292.0,39289.0,0.0003967]
[1645906064167,0.29138289,39291.0,39286.0,0.01016]
[1645906064361,0.2499,39288.0,39286.0,0.01016]
[1645906064562,0.291222,39287.0,39286.0,0.01016]
[1645906065563,0.0509,39287.0,39286.0,0.01016]
[1645906065966,0.114595,39287.0,39286.0,0.01016]
[1645906067023,0.115595,39287.0,39286.0,0.01016]
[1645906067622,0.355917,39287.0,39286.0,0.01016]
[1645906067823,0.115595,39287.0,39286.0,0.01016]
[1645906068421,0.114595,39287.0,39286.0,0.01016]
[1645906069328,0.115595,39287.0,39286.0,0.01016]
[1645906070358,0.354917,39287.0,39286.0,0.01016]
[1645906070762,0.354917,39287.0,39285.0,0.0051]
[1645906070958,0.240322,39286.0,39285.0,0.00551703]
[1645906071160,0.0509,39286.0,39285.0,0.00551703]
[1645906071959,0.291222,39286.0,39285.0,0.0051]
[1645906072360,0.0509,39286.0,39285.0,0.0051]
[1645906073164,0.0519,39286.0,39285.0,0.0051]
[1645906074409,0.0509,39286.0,39285.0,0.0051]
[1645906074710,0.291222,39286.0,39285.0,0.0051]
[1645906074911,0.0509,39286.0,39285.0,0.0051]
[1645906075115,0.0519,39286.0,39285.0,0.0051]
[1645906076320,0.0509,39286.0,39285.0,0.0051]
[1645906077117,0.0519,39286.0,39285.0,0.0051]
[1645906077717,0.0509934,39286.0,39285.0,0.0051]
[1645906078359,0.0499934,39286.0,39285.0,0.0051]
[1645906078660,0.2903154,39286.0,39285.0,0.0051]
[1645906079059,0.0509934,39286.0,39285.0,0.0051]
[1645906079258,0.2913154,39286.0,39285.0,0.0051]
[1645906079859,0.0509934,39286.0,39285.0,0.0051]
[1645906080060,0.2913154,39286.0,39285.0,0.0051]
[1645906080361,0.2903154,39286.0,39285.0,0.0051]
[1645906080760,0.0499934,39286.0,39285.0,0.0051]
[1645906080960,0.2903154,39286.0,39285.0,0.0051]
[1645906081162,0.2913154,39286.0,39285.0,0.0051]
[1645906081366,0.0509934,39286.0,39285.0,0.0051]
[1645906081609,0.2913154,39286.0,39285.0,0.0051]
[1645906082012,0.0509934,39286.0,39285.0,0.0051]
[1645906082207,0.2913154,39286.0,39285.0,0.0051]
[1645906082507,0.2913154,39286.0,39285.0,0.0021]
[1645906082709,0.63241962,39286.0,39285.0,0.0021]
[1645906082910,0.3413154,39286.0,39285.0,0.0021]
[1645906083108,0.51239613,39286.0,39285.0,0.0021]
[1645906083309,0.51339613,39286.0,39285.0,0.0021]
[1645906083713,0.81339613,39286.0,39285.0,0.0021]
[1645906083915,0.57307413,39286.0,39285.0,0.0021]
[1645906084311,0.81339613,39286.0,39285.0,0.0021]
[1645906084511,1.44809613,39286.0,39285.0,0.0011]
[1645906084810,2.13509977,39286.0,39285.0,0.0011]
[1645906085011,2.37542177,39286.0,39285.0,0.0011]
[1645906085212,2.13609977,39286.0,39285.0,0.0011]
[1645906085460,2.37642177,39286.0,39285.0,0.0011]
[1645906086464,2.37542177,39286.0,39285.0,0.0011]
[1645906086866,0.3,39283.0,39281.0,0.0011]
[1645906087074,0.240322,39281.0,39279.0,0.0011]
[1645906087265,0.240322,39281.0,39275.0,0.0031]
[1645906087266,0.240322,39279.0,39275.0,0.0031]
[1645906087463,0.926922,39279.0,39275.0,0.0031]
[1645906088064,1.1767425,39279.0,39275.0,0.0031]
[1645906088263,1.56439712,39279.0,39275.0,0.0031]
[1645906088662,0.85868073,39279.0,39275.0,0.0031]
[1645906088862,0.85868073,39279.0,39277.0,0.00341656]
[1645906088863,0.6866,39279.0,39277.0,0.00341656]
[1645906089416,0.6876,39279.0,39277.0,0.00341656]
[1645906090016,0.6876,39279.0,39277.0,0.003]
[1645906090217,0.6876,39279.0,39277.0,0.00341656]
[1645906090417,0.927822,39279.0,39277.0,0.00341656]
[1645906090617,0.926822,39279.0,39277.0,0.00341656]
[1645906090817,0.85868073,39279.0,39277.0,0.00341656]
[1645906091219,0.927822,39279.0,39277.0,0.003]
[1645906091418,1.09990273,39279.0,39277.0,0.00341656]
[1645906092421,1.09890273,39279.0,39277.0,0.003]
[1645906092620,1.09890273,39279.0,39277.0,0.00341656]
[1645906093261,1.09990273,39279.0,39277.0,0.00341656]
[1645906093861,0.85968073,39279.0,39277.0,0.00341656]
[1645906094061,1.09990273,39279.0,39277.0,0.00341656]
[1645906094267,0.927822,39279.0,39277.0,0.00341656]
[1645906094463,1.09890273,39279.0,39277.0,0.00341656]
[1645906094663,0.85868073,39279.0,39277.0,0.003]
[1645906094866,0.85868073,39279.0,39277.0,0.00341656]
[1645906095070,0.18225073,39283.0,39277.0,0.00341656]
[1645906095266,0.015,39286.0,39277.0,0.00341656]
[1645906095466,0.015,39286.0,39279.0,0.379763]
[1645906095666,0.015,39286.0,39281.0,0.379763]
[1645906095864,0.015,39286.0,39284.0,0.379763]
[1645906096265,0.015,39286.0,39283.0,0.17726996]
[1645906096468,0.015,39286.0,39284.0,0.379763]
[1645906096724,0.015,39286.0,39283.0,0.17726996]
[1645906096927,0.0005,39290.0,39283.0,0.36882056]
[1645906097327,0.002,39286.0,39284.0,0.379763]
[1645906097527,0.002,39286.0,39283.0,0.36923708]
[1645906097926,0.002,39286.0,39283.0,0.35423708]
[1645906098327,0.002,39286.0,39283.0,0.16226996]
[1645906098527,0.0005,39290.0,39283.0,0.16268648]
[1645906099327,0.0025,39290.0,39285.0,0.16903565]
[1645906099727,0.0025,39290.0,39285.0,0.0004165]
[1645906100558,0.0005,39290.0,39285.0,0.0004165]
[1645906100759,0.0005,39290.0,39287.0,0.17146083]
[1645906101358,0.0015,39290.0,39287.0,0.17146083]
[1645906101558,0.0015,39290.0,39288.0,0.3]
[1645906102561,0.0005,39290.0,39288.0,0.285]
[1645906103159,0.0015,39290.0,39288.0,0.51279152]
[1645906103559,0.0015,39290.0,39288.0,0.22779152]
[1645906103758,0.0015,39290.0,39288.0,0.52779152]
[1645906104211,0.0015,39290.0,39288.0,0.22779152]
[1645906104411,0.0015,39290.0,39288.0,0.52779152]
[1645906104412,0.0005,39290.0,39288.0,0.52779152]
[1645906104610,0.0005,39290.0,39288.0,0.22779152]
[1645906105211,0.0015,39290.0,39288.0,0.52779152]
[1645906105410,0.0015,39290.0,39288.0,0.22779152]
[1645906105611,0.0015,39290.0,39288.0,0.52779152]
[1645906106316,0.0015,39290.0,39288.0,0.22779152]
[1645906106512,0.0005,39290.0,39288.0,0.51279152]
[1645906106712,0.0005,39290.0,39288.0,0.21279152]
[1645906107113,0.0005,39290.0,39288.0,0.51279152]
[1645906107318,0.0015,39290.0,39288.0,0.51279152]
[1645906107711,0.0015,39290.0,39288.0,0.21279152]
[1645906108364,0.0005,39290.0,39287.0,0.17187732]
[1645906109164,0.0015,39290.0,39287.0,0.17146083]
[1645906109364,0.0015,39290.0,39287.0,0.17187732]
[1645906110066,0.0015,39290.0,39287.0,0.00041649]
[1645906110265,0.0015,39290.0,39286.0,0.1758264]
[1645906110467,0.0005,39290.0,39287.0,0.00041649]
[1645906111266,0.0015,39290.0,39287.0,0.00041649]
[1645906111467,0.0015,39290.0,39286.0,0.1758264]
[1645906111707,0.0015,39290.0,39287.0,0.00041649]
[1645906112108,0.0015,39290.0,39286.0,0.16124289]
[1645906112613,0.0005,39290.0,39286.0,0.16124289]
[1645906113012,0.0005,39290.0,39287.0,0.679763]
[1645906113212,0.0025,39290.0,39287.0,0.679763]
[1645906113710,0.0025,39290.0,39287.0,0.379763]
[1645906114114,0.0025,39290.0,39289.0,0.379763]
[1645906114512,0.0005,39290.0,39288.0,0.20596613]
[1645906114710,0.0005,39290.0,39289.0,0.379763]
[1645906115358,0.0015,39290.0,39289.0,0.679763]
[1645906115558,0.0015,39290.0,39288.0,0.20596613]
[1645906116561,0.0005,39290.0,39288.0,0.20596613]
[1645906117261,0.0025,39290.0,39288.0,0.20596613]
[1645906117463,0.0025,39290.0,39287.0,0.3]
[1645906117666,0.0025,39290.0,39287.0,0.679763]
[1645906117867,0.0025,39290.0,39287.0,0.3]
[1645906118562,0.0005,39290.0,39287.0,0.3]
[1645906118762,0.0005,39290.0,39288.0,0.3]
[1645906118963,0.0005,39290.0,39286.0,0.33877856]
[1645906119415,0.0025,39290.0,39286.0,0.33877856]
[1645906120617,0.0005,39290.0,39286.0,0.33877856]
[1645906120816,0.0005,39290.0,39286.0,0.16124289]
[1645906121016,0.0005,39290.0,39285.0,0.0004165]
[1645906121217,0.0025,39290.0,39284.0,0.1179]
[1645906121416,0.0025,39290.0,39285.0,0.0004165]
[1645906122417,0.0025,39290.0,39284.0,0.1179]
[1645906122616,0.0005,39290.0,39285.0,0.0004165]
[1645906122860,0.0514,39290.0,39285.0,0.0004165]
[1645906123263,0.0524,39290.0,39285.0,0.0004165]
[1645906123659,0.0524,39290.0,39284.0,0.1179]
[1645906123859,0.0524,39290.0,39285.0,0.0004165]
[1645906124259,0.0524,39290.0,39285.0,0.16414407]
[1645906124660,0.0514,39290.0,39285.0,0.16414407]
[1645906124859,0.0514,39290.0,39285.0,0.16372757]
[1645906125062,0.0514,39290.0,39285.0,0.16414407]
[1645906125260,0.0514,39290.0,39285.0,0.08489823]
[1645906125464,0.0514,39290.0,39287.0,0.19736365]
[1645906127419,0.0534,39290.0,39287.0,0.19736365]
[1645906128619,0.0514,39290.0,39287.0,0.19736365]
[1645906129220,0.0534,39290.0,39287.0,0.19736365]
[1645906129422,0.0534,39290.0,39285.0,0.0004165]
[1645906129622,0.0534,39290.0,39284.0,0.1179]
[1645906129821,0.0534,39290.0,39285.0,0.0004165]
[1645906130221,0.0534,39290.0,39282.0,0.3101327]
[1645906130464,0.0534,39290.0,39284.0,0.21387408]
[1645906130668,0.0514,39290.0,39284.0,0.21387408]
[1645906131064,0.0514,39290.0,39284.0,0.51387408]
[1645906132265,0.0514,39290.0,39284.0,0.21387408]
[1645906132465,0.0514,39290.0,39284.0,0.51387408]
[1645906132665,0.0514,39290.0,39289.0,0.19184864]
[1645906133273,0.0534,39290.0,39289.0,0.19184864]
[1645906134614,0.0514,39290.0,39289.0,0.19184864]
[1645906135411,0.0534,39290.0,39289.0,0.19184864]
[1645906135613,0.05279139,39290.0,39289.0,0.19184864]
[1645906136416,0.05279139,39290.0,39289.0,0.57161164]
[1645906136417,0.002,39290.0,39289.0,0.57161164]
[1645906136616,6.44e-06,39291.0,39290.0,0.379763]
[1645906136818,0.17017047,39301.0,39290.0,0.679763]
[1645906137016,0.1938,39302.0,39290.0,0.67785423]
[1645906137966,0.1938,39302.0,39297.0,0.22272544]
[1645906138165,0.00014616,39298.0,39297.0,0.22272544]
[1645906139164,0.04905231,39305.0,39297.0,0.52272544]
[1645906139568,0.00040814,39299.0,39295.0,0.23297841]
[1645906139765,0.00040814,39299.0,39292.0,0.3]
[1645906139766,0.00040814,39299.0,39293.0,0.379603]
[1645906139967,0.00040814,39299.0,39292.0,0.3]
[1645906140366,0.04905231,39305.0,39293.0,0.379603]
[1645906140571,0.00040815,39297.0,39295.0,0.379603]
[1645906140769,0.00040815,39297.0,39296.0,0.705053]
[1645906140973,0.00040815,39297.0,39296.0,0.805053]
[1645906140974,8.15e-06,39297.0,39296.0,0.805053]
[1645906141612,0.00025,39305.0,39296.0,0.805053]
[1645906141813,0.00025,39305.0,39303.0,0.22297352]
[1645906142013,0.00025,39305.0,39304.0,0.379603]
[1645906143418,0.00025,39305.0,39304.0,0.679603]
[1645906143919,0.00025,39305.0,39304.0,0.379603]
[1645906144918,0.00025,39305.0,39304.0,0.679603]
[1645906145384,0.00025,39305.0,39294.0,0.1921]
[1645906145575,0.00025,39305.0,39298.0,0.379603]
[1645906146373,0.00025,39305.0,39301.0,0.379603]
[1645906146772,0.00041922,39303.0,39301.0,0.379603]
[1645906147374,0.00241922,39303.0,39301.0,0.379603]
[1645906147574,0.002,39303.0,39301.0,0.379603]
[1645906148575,0.00041922,39304.0,39301.0,0.379603]
[1645906148777,0.00025,39305.0,39301.0,0.379603]
[1645906148975,0.00041922,39304.0,39301.0,0.379603]
[1645906150114,0.00225,39305.0,39301.0,0.379603]
[1645906150317,0.00041921,39304.0,39301.0,0.379603]
[1645906151321,0.002,39304.0,39301.0,0.379603]
[1645906152619,0.00041893,39304.0,39301.0,0.379603]
[1645906153466,0.00241893,39304.0,39301.0,0.379603]
[1645906153671,0.002,39304.0,39301.0,0.379603]
[1645906153870,0.0023923,39304.0,39301.0,0.379603]
[1645906154066,0.0023923,39304.0,39301.0,0.54916577]
[1645906154967,0.002,39304.0,39301.0,0.54916577]
[1645906155168,0.0023923,39304.0,39301.0,0.54916577]
[1645906155567,0.0023923,39304.0,39301.0,0.379603]
[1645906155968,0.002,39304.0,39301.0,0.379603]
[1645906156372,0.0023923,39304.0,39301.0,0.379603]
[1645906156628,0.0023923,39304.0,39303.0,0.2177859]
[1645906156826,0.0023923,39304.0,39303.0,0.5973889]
[1645906157028,0.0003923,39304.0,39303.0,0.5973889]
[1645906157228,0.00025,39305.0,39304.0,0.379603]
[1645906157431,0.00064229,39305.0,39304.0,0.379603]
[1645906157829,0.00064229,39305.0,39304.0,0.679603]
[1645906158227,0.00064229,39305.0,39304.0,0.379603]
[1645906158428,0.00025,39305.0,39304.0,0.679603]
[1645906158627,0.00025,39305.0,39304.0,0.3]
[1645906158827,0.00025,39305.0,39304.0,0.379603]
[1645906159229,4.49e-06,39306.0,39304.0,0.679603]
[1645906159531,4.49e-06,39306.0,39305.0,0.679603]
[1645906159730,0.02940348,39307.0,39306.0,0.379603]
[1645906159928,0.02940348,39307.0,39306.0,0.679603]
[1645906161166,0.02940348,39307.0,39306.0,0.379603]
[1645906161365,0.03240348,39307.0,39306.0,0.379603]
[1645906162872,0.02940348,39307.0,39306.0,0.379603]
[1645906163471,0.03040348,39307.0,39306.0,0.379603]
[1645906164714,0.02940348,39307.0,39306.0,0.379603]
[1645906165514,0.03140348,39307.0,39306.0,0.379603]
[1645906166718,0.02940348,39307.0,39306.0,0.3791533]
[1645906167315,0.03140348,39307.0,39306.0,0.3791533]
[1645906168764,0.02940348,39307.0,39306.0,0.3791533]
[1645906169370,0.03140348,39307.0,39306.0,0.3791533]
[1645906170665,0.02940348,39307.0,39306.0,0.3791533]
[1645906184573,0.02940348,39307.0,39306.0,0.4791533]
[1645906185172,0.1155,39319.0,39308.0,0.379603]
[1645906185373,0.02910454,39320.0,39315.0,0.18856009]
[1645906185575,0.02910454,39320.0,39314.0,0.19166337]
[1645906185971,0.02910454,39320.0,39315.0,0.379485]
[1645906186372,0.00041929,39319.0,39317.0,0.379485]
[1645906186620,0.00041929,39319.0,39314.0,0.19166337]
[1645906186821,0.00041929,39319.0,39317.0,0.379485]
[1645906187021,0.00041929,39319.0,39317.0,0.445845]
[1645906187426,0.02910454,39320.0,39317.0,0.445845]
[1645906187628,0.02925991,39320.0,39317.0,0.445845]
[1645906188623,0.02910454,39320.0,39317.0,0.445845]
[1645906188824,0.02951793,39320.0,39317.0,0.445845]
[1645906189526,0.02951793,39320.0,39317.0,0.379485]
[1645906189725,0.02910454,39320.0,39317.0,0.379485]
[1645906190131,0.02951793,39320.0,39317.0,0.379485]
[1645906190968,0.02910454,39320.0,39317.0,0.379485]
[1645906191167,0.02951793,39320.0,39317.0,0.379485]
[1645906192169,0.02910454,39320.0,39317.0,0.379485]
[1645906192372,0.02949866,39320.0,39317.0,0.379485]
[1645906193174,0.02949866,39320.0,39318.0,0.02545]
[1645906193372,0.02910454,39320.0,39319.0,0.404935]
[1645906193769,0.02949866,39320.0,39319.0,0.404935]
[1645906193972,0.02949866,39320.0,39319.0,0.379485]
[1645906194623,0.02910454,39320.0,39319.0,0.379485]
[1645906197023,0.02910454,39320.0,39315.0,0.1198]
[1645906198171,0.02910454,39320.0,39309.0,0.1222]
[1645906198368,0.0509,39319.0,39309.0,0.1222]
[1645906198568,0.3,39318.0,39309.0,0.1222]
[1645906199569,0.063638,39316.0,39309.0,0.1222]
[1645906199770,0.00039537,39315.0,39309.0,0.1222]
[1645906200069,0.00039537,39315.0,39307.0,0.23036757]
[1645906200270,0.00039537,39315.0,39307.0,0.05880696]
[1645906200482,0.35129537,39315.0,39307.0,0.05880696]
[1645906200670,0.3509,39315.0,39307.0,0.05880696]
[1645906200872,0.00039538,39313.0,39307.0,0.05880696]
[1645906201718,0.063643,39312.0,39307.0,0.05880696]
[1645906201922,0.06403839,39312.0,39307.0,0.05880696]
[1645906202924,0.063643,39312.0,39307.0,0.05880696]
[1645906203128,0.3509,39311.0,39307.0,0.05880696]
[1645906203323,0.242624,39310.0,39307.0,0.05880696]
[1645906203521,0.242624,39308.0,39307.0,0.05880696]
[1645906203721,0.78405095,39308.0,39307.0,0.05880696]
[1645906204120,0.593524,39308.0,39307.0,0.05880696]
[1645906204922,0.731001,39308.0,39307.0,0.05880696]
[1645906205120,0.488377,39308.0,39307.0,0.05880696]
[1645906205364,0.71218561,39308.0,39307.0,0.05880696]
[1645906205671,0.70202561,39308.0,39307.0,0.05880696]
[1645906206466,0.94464961,39308.0,39307.0,0.05880696]
[1645906206669,1.00480961,39308.0,39307.0,0.05880696]
[1645906206865,1.17498008,39308.0,39307.0,0.05880696]
[1645906207065,1.00480961,39308.0,39307.0,0.05880696]
[1645906207268,1.17498008,39308.0,39307.0,0.05880696]
[1645906207870,0.95117147,39308.0,39307.0,0.05880696]
[1645906208070,0.70854747,39308.0,39307.0,0.05880696]
[1645906208275,0.69838747,39308.0,39307.0,0.05880696]
[1645906208469,0.528217,39308.0,39307.0,0.05880696]
[1645906208669,0.528217,39308.0,39307.0,0.058718]
[1645906208870,0.72267347,39308.0,39307.0,0.058718]
[1645906209114,0.96529747,39308.0,39307.0,0.058718]
[1645906209316,0.72267347,39308.0,39307.0,0.058718]
[1645906210317,0.96529747,39308.0,39307.0,0.058718]
[1645906210516,0.72267347,39308.0,39307.0,0.058718]
[1645906210716,0.89284394,39308.0,39307.0,0.058718]
[1645906210921,0.96529747,39308.0,39307.0,0.058718]
[1645906211118,0.72267347,39308.0,39307.0,0.058718]
[1645906211518,0.528217,39308.0,39307.0,0.058718]
[1645906211919,0.820841,39308.0,39307.0,0.058718]
[1645906212119,0.931001,39308.0,39307.0,0.058718]
[1645906212418,0.920841,39308.0,39307.0,0.058718]
[1645906212879,1.09398154,39308.0,39307.0,0.058718]
[1645906213079,1.26415201,39308.0,39307.0,0.058718]
[1645906213678,1.09101147,39308.0,39307.0,0.058718]
[1645906213879,0.84838747,39308.0,39307.0,0.058718]
[1645906214080,0.74838747,39308.0,39307.0,0.058718]
[1645906214479,0.578217,39308.0,39307.0,0.058718]
[1645906215779,0.820841,39308.0,39307.0,0.058718]
[1645906215983,0.578217,39308.0,39307.0,0.058718]
[1645906217921,2.83852032,39308.0,39307.0,0.058718]
[1645906218120,0.578217,39308.0,39307.0,0.058718]
[1645906218322,0.74838747,39308.0,39307.0,0.058718]
[1645906218524,0.578217,39308.0,39307.0,0.058718]
[1645906218721,0.820841,39308.0,39307.0,0.058718]
[1645906219222,0.74838747,39308.0,39307.0,0.058718]
[1645906219421,0.820841,39308.0,39307.0,0.058718]
[1645906219821,0.99101147,39308.0,39307.0,0.058718]
[1645906220021,0.920841,39308.0,39307.0,0.058718]
[1645906220223,1.09101147,39308.0,39307.0,0.058718]
[1645906220667,1.10653972,39308.0,39307.0,0.058718]
[1645906221667,1.09101147,39308.0,39307.0,0.058718]
[1645906225422,0.79101147,39308.0,39307.0,0.058718]
[1645906225823,0.620841,39308.0,39307.0,0.058718]
[1645906229165,0.520841,39308.0,39307.0,0.058718]
[1645906230865,0.620841,39308.0,39307.0,0.058718]
[1645906233121,0.620841,39308.0,39307.0,0.05865416]
[1645906235371,0.63712291,39308.0,39307.0,0.05865416]
[1645906235571,0.620841,39308.0,39307.0,0.05865416]
[1645906236172,0.520841,39308.0,39307.0,0.05865416]
[1645906236574,0.5201632,39308.0,39307.0,0.05865416]
[1645906237675,0.6201632,39308.0,39307.0,0.05865416]
[1645906237881,0.63644894,39308.0,39307.0,0.05865416]
[1645906238276,0.6201632,39308.0,39307.0,0.05865416]
[1645906238478,0.79033367,39308.0,39307.0,0.05865416]
[1645906238679,0.69033367,39308.0,39307.0,0.05865416]
[1645906239423,0.5201632,39308.0,39307.0,0.05865416]
[1645906239617,0.6201632,39308.0,39307.0,0.05865416]
[1645906240219,0.63644894,39308.0,39307.0,0.05865416]
[1645906241619,0.6201632,39308.0,39307.0,0.05865416]
[1645906242023,0.93645056,39308.0,39307.0,0.05865416]
[1645906242219,0.9201632,39308.0,39307.0,0.05865416]
[1645906242419,1.09033367,39308.0,39307.0,0.05865416]
[1645906242624,0.8201632,39308.0,39307.0,0.05865416]
[1645906242865,0.99033367,39308.0,39307.0,0.05865416]
[1645906243064,0.8201632,39308.0,39307.0,0.05865416]
[1645906243269,0.99033367,39308.0,39307.0,0.05865416]
[1645906243565,0.8201632,39308.0,39307.0,0.05865416]
[1645906244265,0.99033367,39308.0,39307.0,0.05865416]
[1645906244465,0.8201632,39308.0,39307.0,0.05865416]
[1645906244867,0.99033367,39308.0,39307.0,0.05865416]
[1645906245167,0.8201632,39308.0,39307.0,0.05865416]
[1645906245367,0.99033367,39308.0,39307.0,0.05865416]
[1645906245565,0.8201632,39308.0,39307.0,0.05865416]
[1645906245766,0.99033367,39308.0,39307.0,0.05865416]
[1645906245970,0.420841,39308.0,39307.0,0.05865416]
[1645906247327,0.470841,39308.0,39307.0,0.05865416]
[1645906247523,0.770841,39308.0,39307.0,0.05865416]
[1645906247927,0.92646303,39308.0,39307.0,0.05865416]
[1645906248125,0.470841,39308.0,39307.0,0.05865416]
[1645906248328,0.62646303,39308.0,39307.0,0.05865416]
[1645906248525,0.38383903,39308.0,39307.0,0.05865416]
[1645906248726,0.228217,39308.0,39307.0,0.05865416]
[1645906249727,0.470841,39308.0,39307.0,0.05865416]
[1645906250126,0.228217,39308.0,39307.0,0.05865416]
[1645906250375,0.470841,39308.0,39307.0,0.05865416]
[1645906250575,0.228217,39308.0,39307.0,0.05865416]
[1645906250774,0.62646303,39308.0,39307.0,0.05865416]
[1645906250973,0.228217,39308.0,39307.0,0.05865416]
[1645906251174,0.62646303,39308.0,39307.0,0.05865416]
[1645906251373,0.228217,39308.0,39307.0,0.05865416]
[1645906251578,0.470841,39308.0,39307.0,0.05865416]
[1645906251774,0.228217,39308.0,39307.0,0.05865416]
[1645906252177,0.470841,39308.0,39307.0,0.05865416]
[1645906252775,0.770841,39308.0,39307.0,0.05865416]
[1645906253278,1.18344037,39308.0,39307.0,0.05865416]
[1645906253477,0.92646303,39308.0,39307.0,0.05865416]
[1645906253876,1.18344037,39308.0,39307.0,0.05865416]
[1645906254120,0.94081637,39308.0,39307.0,0.05865416]
[1645906254316,0.68383903,39308.0,39307.0,0.05865416]
[1645906254517,0.770841,39308.0,39307.0,0.05865416]
[1645906254716,1.02781834,39308.0,39307.0,0.05865416]
[1645906254917,0.528217,39308.0,39307.0,0.05865416]
[1645906255121,0.92646303,39308.0,39307.0,0.05865416]
[1645906255317,0.770841,39308.0,39307.0,0.05865416]
[1645906255517,0.92646303,39308.0,39307.0,0.05865416]
[1645906255719,1.17636303,39308.0,39307.0,0.05865416]
[1645906255919,1.27771834,39308.0,39307.0,0.05865416]
[1645906256219,1.17636303,39308.0,39307.0,0.05865416]
[1645906256419,1.43334037,39308.0,39307.0,0.05865416]
[1645906256719,1.17636303,39308.0,39307.0,0.05865416]
[1645906256920,1.17636303,39308.0,39307.0,0.05857896]
[1645906258371,1.43334069,39308.0,39307.0,0.05857896]
[1645906258771,1.48334069,39308.0,39307.0,0.05857896]
[1645906258972,1.48334069,39308.0,39298.0,0.1237]
[1645906259173,0.063673,39304.0,39298.0,0.1237]
[1645906259374,0.3509,39303.0,39295.0,0.01016]
[1645906259574,0.127345,39301.0,39295.0,0.01016]
[1645906259777,0.3509,39300.0,39295.0,0.01016]
[1645906259977,0.242624,39299.0,39295.0,0.01016]
[1645906260176,0.2499,39297.0,39295.0,0.01016]
[1645906260381,0.293524,39296.0,39295.0,0.01016]
[1645906260575,0.35721,39296.0,39295.0,0.01016]
[1645906262030,0.414586,39296.0,39295.0,0.01016]
[1645906262231,0.505476,39296.0,39295.0,0.01016]
[1645906263033,0.7481,39296.0,39295.0,0.01016]
[1645906263830,0.242624,39295.0,39290.0,0.00040777]
[1645906264030,0.114582,39294.0,39290.0,0.00040777]
[1645906264231,0.11458265,39293.0,39289.0,0.1133]
[1645906264429,0.063683,39292.0,39290.0,0.00040776]
[1645906265230,0.178266,39293.0,39290.0,0.00040776]
[1645906265231,0.0509,39293.0,39290.0,0.00040776]
[1645906265476,0.0509,39293.0,39287.0,0.02545]
[1645906265675,0.0509,39293.0,39292.0,0.19152431]
[1645906265872,0.0509,39293.0,39289.0,0.02085777]
[1645906266273,0.0509,39293.0,39290.0,0.379485]
[1645906266474,0.0509,39293.0,39289.0,0.02085777]
[1645906266675,0.0509,39293.0,39287.0,0.404935]
[1645906266876,0.0509,39293.0,39290.0,0.00040563]
[1645906267880,0.0509,39293.0,39290.0,0.20422689]
[1645906268081,0.0509,39293.0,39290.0,0.20463252]
[1645906268880,0.0509,39293.0,39290.0,0.00040563]
[1645906269117,0.0509,39293.0,39287.0,0.379485]
[1645906269317,0.0509,39293.0,39290.0,0.00040563]
[1645906270322,0.0509,39293.0,39289.0,0.19407668]
[1645906270520,0.0509,39293.0,39290.0,0.00041871]
[1645906271520,0.0509,39293.0,39286.0,0.02545]
[1645906271722,0.0509,39293.0,39290.0,0.00041871]
[1645906272321,0.32095277,39292.0,39290.0,0.00041871]
[1645906272722,0.32095277,39292.0,39285.0,0.23211751]
[1645906272979,0.063679,39292.0,39289.0,0.00041871]
[1645906273380,0.32095277,39292.0,39289.0,0.00041871]
[1645906273979,0.06369,39290.0,39282.0,0.379485]
[1645906274178,0.19106923,39290.0,39289.0,0.00042024]
[1645906275080,0.54196923,39290.0,39279.0,0.19209084]
[1645906275280,0.54196923,39290.0,39288.0,0.00042024]
[1645906275481,0.24196923,39290.0,39288.0,0.00042024]
[1645906275879,0.30565923,39290.0,39288.0,0.00042024]
[1645906276289,0.30565923,39290.0,39279.0,0.19209084]
[1645906276480,0.30565923,39290.0,39287.0,0.00042025]
[1645906276481,0.3,39289.0,39287.0,0.00042025]
[1645906276732,0.293524,39288.0,39287.0,0.00042025]
[1645906277030,0.593524,39288.0,39287.0,0.00042025]
[1645906277430,0.593524,39288.0,39281.0,0.1241]
[1645906277630,0.593524,39288.0,39286.0,0.00042026]
[1645906277831,0.3,39287.0,39286.0,0.00042026]
[1645906278034,0.643524,39287.0,39286.0,0.00042026]
[1645906278432,0.4009,39287.0,39286.0,0.00042026]
[1645906278636,0.643524,39287.0,39279.0,0.22552591]
[1645906278838,0.3184633,39286.0,39285.0,0.00042026]
[1645906279133,0.3693633,39286.0,39285.0,0.00042026]
[1645906279332,0.6119873,39286.0,39285.0,0.00042026]
[1645906279934,0.127386,39285.0,39279.0,0.22552591]
[1645906280134,0.37001,39285.0,39284.0,0.00042027]
[1645906280387,0.42091,39285.0,39284.0,0.00042027]
[1645906280599,0.357216,39285.0,39284.0,0.00042027]
[1645906280987,0.357216,39285.0,39279.0,0.22552591]
[1645906281192,0.414592,39285.0,39279.0,0.22552591]
[1645906281389,0.414592,39285.0,39283.0,0.00042028]
[1645906281589,0.242624,39284.0,39283.0,0.00042028]
[1645906281790,0.293524,39284.0,39283.0,0.00042028]